bitfinex/quotes_BTCUSD_20251116
["timestamp","ask_amount","ask_price","bid_price","bid_amount"]
[1763295079387,0.0228602,95801.0,95775.0,0.10402093]
[1763295079388,0.02285232,95796.0,95775.0,0.10402093]
[1763295079582,0.02285232,95795.0,95775.0,0.10402093]
[1763295079789,0.02285232,95794.0,95775.0,0.10402093]
[1763295079994,0.02285232,95793.0,95775.0,0.10402093]
[1763295080152,0.02285232,95792.0,95775.0,0.10402093]
[1763295080346,0.02285232,95791.0,95775.0,0.10402093]
[1763295080573,0.02285232,95790.0,95775.0,0.10402093]
[1763295080777,0.02285232,95789.0,95775.0,0.10402093]
[1763295080993,0.02285232,95788.0,95775.0,0.10402093]
[1763295081188,0.01958376,95787.0,95775.0,0.10402093]
[1763295081391,0.0228602,95793.0,95775.0,0.10402093]
[1763295081595,0.02284911,95792.0,95775.0,0.10402093]
[1763295081775,0.02284911,95791.0,95775.0,0.10402093]
[1763295081971,0.02284911,95790.0,95775.0,0.10402093]
[1763295082175,0.02284911,95789.0,95775.0,0.10402093]
[1763295082387,0.02284911,95788.0,95775.0,0.10402093]
[1763295082589,0.01958058,95787.0,95772.0,0.01154]
[1763295082769,0.01958058,95786.0,95772.0,0.01154]
[1763295082982,0.0228602,95793.0,95772.0,0.01154]
[1763295083178,0.02284791,95792.0,95772.0,0.01154]
[1763295083416,0.02284791,95791.0,95772.0,0.01154]
[1763295083738,0.02284791,95790.0,95772.0,0.01154]
[1763295083882,0.02284791,95789.0,95772.0,0.01154]
[1763295084084,0.02284791,95788.0,95772.0,0.01154]
[1763295084309,0.02284791,95787.0,95772.0,0.01154]
[1763295084487,0.01957936,95786.0,95772.0,0.01154]
[1763295084683,0.0228602,95793.0,95772.0,0.01154]
[1763295084910,0.0228456,95792.0,95774.0,0.04175357]
[1763295085163,0.0228456,95791.0,95774.0,0.04175357]
[1763295085394,0.0228456,95790.0,95775.0,0.02477]
[1763295085602,0.0228602,95793.0,95775.0,0.02477]
[1763295085809,0.02284497,95792.0,95776.0,0.02065778]
[1763295086049,0.02284497,95791.0,95776.0,0.02065778]
[1763295086251,0.01957659,95790.0,95784.0,0.11556093]
[1763295086457,9.886e-05,95806.0,95792.0,0.02746]
[1763295086570,0.0228602,95800.0,95793.0,0.01592]
[1763295086807,0.02284612,95799.0,95793.0,0.04069]
[1763295087015,0.02284612,95798.0,95793.0,0.04069]
[1763295087214,0.02284612,95797.0,95793.0,0.04069]
[1763295087415,0.01957793,95796.0,95793.0,0.04069]
[1763295087614,0.0228602,95800.0,95793.0,0.04069]
[1763295087843,0.02284596,95799.0,95793.0,0.04069]
[1763295088043,0.02284596,95798.0,95793.0,0.04069]
[1763295088243,0.02284596,95797.0,95793.0,0.04069]
[1763295088452,0.0228602,95800.0,95793.0,0.04069]
[1763295088453,0.01957777,95796.0,95793.0,0.04069]
[1763295088676,0.0228602,95800.0,95793.0,0.04069]
[1763295088823,0.02284582,95799.0,95793.0,0.04069]
[1763295089040,0.01957763,95798.0,95793.0,0.04069]
[1763295089261,9.886e-05,95806.0,95793.0,0.04069]
[1763295089593,0.0228602,95802.0,95793.0,0.04069]
[1763295089811,0.02284577,95801.0,95793.0,0.04069]
[1763295090021,0.02284577,95800.0,95793.0,0.04069]
[1763295090218,0.02284577,95799.0,95793.0,0.04069]
[1763295090459,0.01957764,95798.0,95793.0,0.04069]
[1763295090637,0.0228602,95802.0,95793.0,0.04069]
[1763295090813,0.02284574,95801.0,95793.0,0.04069]
[1763295091017,0.02284574,95800.0,95793.0,0.04069]
[1763295091204,0.02284574,95799.0,95793.0,0.04069]
[1763295091405,0.01957761,95798.0,95793.0,0.04069]
[1763295091601,0.0228602,95804.0,95793.0,0.04069]
[1763295091820,0.02284528,95803.0,95793.0,0.04069]
[1763295092023,0.02284528,95802.0,95793.0,0.04069]
[1763295092247,0.02284528,95801.0,95793.0,0.04069]
[1763295092421,0.02284528,95800.0,95793.0,0.01592]
[1763295092627,0.02284528,95799.0,95793.0,0.01592]
[1763295092831,0.01957715,95798.0,95793.0,0.01592]
[1763295093032,0.0228602,95804.0,95793.0,0.01592]
[1763295093232,0.02284519,95803.0,95793.0,0.01592]
[1763295093452,0.02284519,95802.0,95793.0,0.01592]
[1763295093659,0.02284519,95801.0,95793.0,0.01592]
[1763295093885,0.02284519,95800.0,95793.0,0.01592]
[1763295094088,0.01957706,95799.0,95793.0,0.01592]
[1763295094356,0.01957706,95798.0,95793.0,0.01592]
[1763295094574,0.0228602,95804.0,95793.0,0.01592]
[1763295094797,0.02284465,95803.0,95793.0,0.01592]
[1763295095005,0.02284465,95802.0,95793.0,0.01592]
[1763295095215,0.02284465,95801.0,95793.0,0.01592]
[1763295095402,0.02284465,95800.0,95784.0,0.1380623]
[1763295095631,0.02284465,95799.0,95786.0,0.01213]
[1763295095815,0.01957652,95798.0,95786.0,0.01213]
[1763295096019,0.01957652,95802.0,95786.0,0.01213]
[1763295096257,0.02277,95803.0,95786.0,0.01213]
[1763295096258,0.02284467,95801.0,95786.0,0.01213]
[1763295096464,0.02284467,95800.0,95786.0,0.01213]
[1763295096669,0.02284467,95799.0,95786.0,0.01213]
[1763295096875,0.01957652,95798.0,95784.0,0.1152923]
[1763295097106,0.02284467,95797.0,95784.0,0.1152923]
[1763295097312,9.886e-05,95806.0,95784.0,0.1152923]
[1763295097313,0.01957652,95796.0,95784.0,0.10402093]
[1763295097507,0.02284484,95795.0,95784.0,0.10402093]
[1763295097665,0.02284484,95794.0,95784.0,0.10402093]
[1763295098067,0.01957652,95793.0,95784.0,0.10402093]
[1763295098246,0.02277,95802.0,95784.0,0.10402093]
[1763295098451,0.02284664,95801.0,95784.0,0.10402093]
[1763295098652,0.02284664,95800.0,95784.0,0.10402093]
[1763295098802,0.02284664,95799.0,95784.0,0.10402093]
[1763295098993,0.02284664,95798.0,95784.0,0.10402093]
[1763295099200,0.02284664,95797.0,95784.0,0.10402093]
[1763295099402,0.02284664,95796.0,95784.0,0.10402093]
[1763295099618,0.02284664,95795.0,95784.0,0.10402093]
[1763295099817,0.02284664,95794.0,95784.0,0.10402093]
[1763295100101,0.01957832,95793.0,95785.0,0.01213]
[1763295100304,0.02277,95802.0,95785.0,0.01213]
[1763295100503,0.02284693,95801.0,95785.0,0.01213]
[1763295100715,0.02284693,95800.0,95785.0,0.01213]
[1763295100913,0.02284693,95799.0,95785.0,0.01213]
[1763295101174,0.02284693,95798.0,95785.0,0.01213]
[1763295101402,0.02284693,95797.0,95785.0,0.01213]
[1763295101619,0.02284693,95796.0,95785.0,0.01213]
[1763295101858,0.02284693,95795.0,95785.0,0.01213]
[1763295102075,0.02284693,95794.0,95785.0,0.01213]
[1763295102281,0.01957983,95793.0,95786.0,0.02277]
[1763295102482,0.02277,95802.0,95786.0,0.02277]
[1763295102689,0.02284784,95801.0,95786.0,0.02277]
[1763295102883,0.02284784,95800.0,95786.0,0.02277]
[1763295103135,0.02284784,95799.0,95786.0,0.02277]
[1763295103341,0.02284784,95798.0,95786.0,0.02277]
[1763295103552,0.02284784,95797.0,95786.0,0.02277]
[1763295103717,0.02284784,95796.0,95786.0,0.02277]
[1763295104054,0.02284784,95795.0,95786.0,0.02277]
[1763295104256,0.01957961,95794.0,95786.0,0.02277]
[1763295104465,0.02277,95802.0,95786.0,0.02277]
[1763295104603,0.02284887,95801.0,95787.0,0.02087966]
[1763295104797,0.02284887,95800.0,95787.0,0.02087966]
[1763295105025,0.02284887,95799.0,95788.0,0.02277]
[1763295105321,0.02284887,95798.0,95789.0,0.02087922]
[1763295105521,0.02284887,95797.0,95790.0,0.020879]
[1763295105737,0.01958063,95796.0,95791.0,0.02087878]
[1763295105939,0.02277,95803.0,95792.0,0.02087857]
[1763295106145,0.02284898,95802.0,95793.0,0.02087835]
[1763295106345,0.02284898,95801.0,95794.0,0.02087813]
[1763295106583,0.02284898,95800.0,95789.0,0.02087922]
[1763295106794,0.02284898,95799.0,95789.0,0.02087922]
[1763295106969,0.02284898,95798.0,95789.0,0.04364922]
[1763295107171,0.02284898,95797.0,95789.0,0.04364922]
[1763295107402,0.01958078,95796.0,95789.0,0.04364922]
[1763295107542,0.01958078,95795.0,95790.0,0.02277]
[1763295107748,0.02277,95803.0,95791.0,0.02087878]
[1763295107952,0.02285086,95802.0,95792.0,0.02087857]
[1763295108189,0.02285086,95801.0,95793.0,0.02087835]
[1763295108440,0.02285086,95800.0,95793.0,0.02087835]
[1763295108688,0.02285086,95799.0,95790.0,0.02277]
[1763295108874,0.02285086,95798.0,95790.0,0.02277]
[1763295109081,0.02285086,95797.0,95786.0,0.02277]
[1763295109282,0.01958266,95796.0,95786.0,0.02277]
[1763295109544,0.02277,95803.0,95786.0,0.02277]
[1763295109759,0.0228525,95802.0,95786.0,0.02277]
[1763295109966,0.0228525,95801.0,95786.0,0.02277]
[1763295110181,0.0228525,95800.0,95786.0,0.02277]
[1763295110391,0.0228525,95799.0,95786.0,0.02277]
[1763295110519,0.0228525,95798.0,95786.0,0.02277]
[1763295110737,0.0228525,95797.0,95786.0,0.02277]
[1763295110966,0.01958432,95796.0,95786.0,0.02277]
[1763295111232,0.02277,95803.0,95786.0,0.02277]
[1763295111465,0.0228541,95802.0,95786.0,0.02277]
[1763295111614,0.0228541,95801.0,95786.0,0.02277]
[1763295111809,0.0228541,95800.0,95786.0,0.02277]
[1763295112010,0.0228541,95799.0,95786.0,0.02277]
[1763295112383,0.0228541,95798.0,95786.0,0.02277]
[1763295112629,0.0228541,95797.0,95786.0,0.02277]
[1763295112851,0.02277,95803.0,95786.0,0.02277]
[1763295112852,0.01958594,95796.0,95786.0,0.02277]
[1763295113054,0.02277,95803.0,95786.0,0.02277]
[1763295113256,0.02285466,95802.0,95786.0,0.02277]
[1763295113453,0.02285466,95801.0,95786.0,0.02277]
[1763295113654,0.02285466,95800.0,95786.0,0.02277]
[1763295113869,0.02285466,95799.0,95786.0,0.02277]
[1763295114165,0.02285466,95798.0,95786.0,0.02277]
[1763295114392,0.02285466,95797.0,95786.0,0.02277]
[1763295114623,0.02285466,95796.0,95786.0,0.02277]
[1763295114803,0.0195865,95795.0,95786.0,0.03666209]
[1763295115014,0.02277,95803.0,95786.0,0.03666209]
[1763295115208,0.02285834,95802.0,95787.0,0.02277]
[1763295115516,0.02285834,95801.0,95788.0,0.01641524]
[1763295115721,0.02285834,95800.0,95788.0,0.01641524]
[1763295115917,0.02285834,95799.0,95789.0,0.02277]
[1763295116118,0.02285834,95798.0,95789.0,0.02277]
[1763295116338,0.02285834,95797.0,95789.0,0.02277]
[1763295116539,0.02285834,95796.0,95789.0,0.02277]
[1763295116752,0.01959017,95795.0,95789.0,0.02277]
[1763295116987,0.01959017,95794.0,95789.0,0.02277]
[1763295117209,9.886e-05,95806.0,95802.0,0.02786]
[1763295117210,3.623e-05,95806.0,95802.0,0.02786]
[1763295117424,3.623e-05,95806.0,95802.0,0.01213]
[1763295118025,0.02289944,95806.0,95802.0,0.01213]
[1763295118260,0.02286321,95805.0,95803.0,0.02277]
[1763295118473,3.623e-05,95806.0,95803.0,0.02277]
[1763295119502,3.623e-05,95806.0,95795.0,0.01213]
[1763295121015,3.623e-05,95806.0,95796.0,0.02087769]
[1763295121968,3.623e-05,95806.0,95797.0,0.01228]
[1763295126018,3.623e-05,95806.0,95784.0,0.10402093]
[1763295126667,0.02287588,95806.0,95784.0,0.10402093]
[1763295126870,0.02283965,95805.0,95784.0,0.10402093]
[1763295127070,0.02283965,95804.0,95784.0,0.10402093]
[1763295127271,0.02283965,95803.0,95784.0,0.10402093]
[1763295127490,0.01957188,95802.0,95784.0,0.10402093]
[1763295127743,0.01957188,95801.0,95784.0,0.10402093]
[1763295127894,3.623e-05,95806.0,95784.0,0.10402093]
[1763295128095,0.02287792,95806.0,95784.0,0.10402093]
[1763295128314,0.02284169,95805.0,95784.0,0.10402093]
[1763295128562,0.02284169,95804.0,95784.0,0.10402093]
[1763295128767,0.02284169,95803.0,95784.0,0.10402093]
[1763295128968,0.02284169,95802.0,95784.0,0.10402093]
[1763295129169,0.01957366,95801.0,95784.0,0.10402093]
[1763295129349,0.02287792,95805.0,95784.0,0.10402093]
[1763295129502,0.02284359,95804.0,95784.0,0.10402093]
[1763295129703,0.02284359,95803.0,95784.0,0.10402093]
[1763295129947,0.02284359,95802.0,95784.0,0.10402093]
[1763295130151,0.01957556,95801.0,95784.0,0.10402093]
[1763295130369,0.02287792,95805.0,95784.0,0.10402093]
[1763295130571,0.02284442,95804.0,95784.0,0.10402093]
[1763295130776,0.02284442,95803.0,95784.0,0.10402093]
[1763295130976,0.02284442,95802.0,95784.0,0.11913902]
[1763295131152,0.01957639,95801.0,95784.0,0.10402093]
[1763295131357,0.01957639,95800.0,95784.0,0.10402093]
[1763295131562,0.02287792,95805.0,95784.0,0.10402093]
[1763295131759,0.02284546,95804.0,95784.0,0.10402093]
[1763295131942,0.02284546,95803.0,95784.0,0.10402093]
[1763295132145,0.02284546,95802.0,95784.0,0.10402093]
[1763295132360,0.01957743,95801.0,95784.0,0.10402093]
[1763295132572,0.01957743,95800.0,95784.0,0.10402093]
[1763295132789,0.02287792,95805.0,95784.0,0.10402093]
[1763295132996,0.02284647,95804.0,95784.0,0.10402093]
[1763295133195,0.02284647,95803.0,95784.0,0.10402093]
[1763295133411,0.02284647,95802.0,95784.0,0.10402093]
[1763295133598,0.01957844,95801.0,95784.0,0.10402093]
[1763295133884,0.01957844,95800.0,95785.0,0.01511809]
[1763295134114,0.02287792,95805.0,95785.0,0.01511809]
[1763295134340,0.02284784,95804.0,95786.0,0.01228]
[1763295134547,0.02284782,95803.0,95786.0,0.03572]
[1763295134762,0.01957981,95802.0,95786.0,0.03572]
[1763295134968,0.01957981,95801.0,95787.0,0.0179269]
[1763295135165,0.02287792,95805.0,95787.0,0.0413669]
[1763295135403,0.02284855,95804.0,95787.0,0.0413669]
[1763295135605,0.02284855,95803.0,95787.0,0.0413669]
[1763295135804,0.01958059,95802.0,95787.0,0.0413669]
[1763295136032,0.01958059,95801.0,95788.0,0.01697978]
[1763295136228,0.02291415,95806.0,95788.0,0.01697978]
[1763295136447,0.02284917,95805.0,95788.0,0.04041978]
[1763295136658,0.02284917,95804.0,95788.0,0.04041978]
[1763295136889,0.02284917,95803.0,95788.0,0.04041978]
[1763295137074,0.01958121,95802.0,95789.0,0.01688507]
[1763295137252,0.01958121,95801.0,95789.0,0.01688507]
[1763295137461,0.02291415,95806.0,95789.0,0.01688507]
[1763295137664,0.02284991,95805.0,95789.0,0.01688507]
[1763295137830,0.02284991,95804.0,95789.0,0.01688507]
[1763295138028,0.02284991,95803.0,95789.0,0.01688507]
[1763295138239,0.01958195,95802.0,95789.0,0.01688507]
[1763295138446,0.01958195,95801.0,95789.0,0.01688507]
[1763295138658,3.623e-05,95806.0,95805.0,0.02681]
[1763295139085,3.623e-05,95806.0,95805.0,0.01135]
[1763295141849,3.623e-05,95806.0,95805.0,0.01235]
[1763295142067,3.623e-05,95806.0,95805.0,0.01335]
[1763295144178,3.623e-05,95806.0,95805.0,0.03422573]
[1763295144365,3.623e-05,95806.0,95805.0,0.02830967]
[1763295146023,3.623e-05,95806.0,95805.0,0.01335]
[1763295147035,3.623e-05,95806.0,95805.0,0.01235]
[1763295147213,3.623e-05,95806.0,95805.0,0.001]
[1763295147628,3.623e-05,95806.0,95800.0,0.01135]
[1763295148045,3.623e-05,95806.0,95805.0,0.001]
[1763295148239,3.623e-05,95806.0,95795.0,0.01135]
[1763295148468,3.623e-05,95806.0,95805.0,0.001]
[1763295148678,3.623e-05,95806.0,95805.0,0.002]
[1763295148895,3.623e-05,95806.0,95781.0,0.01135]
[1763295148896,3.623e-05,95806.0,95783.0,0.02344]
[1763295149095,3.623e-05,95806.0,95781.0,0.01135]
[1763295149506,3.623e-05,95806.0,95785.0,0.01135]
[1763295150137,3.623e-05,95806.0,95785.0,0.03479]
[1763295161105,3.623e-05,95806.0,95785.0,0.01135]
[1763295161291,3.623e-05,95806.0,95786.0,0.02415]
[1763295168474,3.623e-05,95806.0,95787.0,0.02087966]
[1763295168647,3.623e-05,95806.0,95788.0,0.01717506]
[1763295168850,3.623e-05,95806.0,95789.0,0.02087922]
[1763295169053,3.623e-05,95806.0,95790.0,0.020879]
[1763295169335,3.623e-05,95806.0,95791.0,0.03236878]
[1763295169536,3.623e-05,95806.0,95791.0,0.05651878]
[1763295169752,3.623e-05,95806.0,95792.0,0.03265438]
[1763295169981,3.623e-05,95806.0,95793.0,0.02087835]
[1763295170178,3.623e-05,95806.0,95794.0,0.02087813]
[1763295170389,3.623e-05,95806.0,95795.0,0.02087791]
[1763295170594,3.623e-05,95806.0,95793.0,0.02415]
[1763295170595,3.623e-05,95806.0,95805.0,0.02767]
[1763295170792,3.623e-05,95806.0,95805.0,0.04083909]
[1763295171193,3.623e-05,95806.0,95805.0,0.02767]
[1763295171393,3.623e-05,95806.0,95805.0,0.01149]
[1763295173001,3.623e-05,95806.0,95805.0,0.01249]
[1763295173213,3.623e-05,95806.0,95805.0,0.03664]
[1763295173833,3.623e-05,95806.0,95805.0,0.03764]
[1763295174473,3.623e-05,95806.0,95805.0,0.01349]
[1763295174684,3.623e-05,95806.0,95805.0,0.03764]
[1763295175105,3.623e-05,95806.0,95805.0,0.03089269]
[1763295175309,3.623e-05,95806.0,95805.0,0.05176842]
[1763295178820,3.623e-05,95806.0,95805.0,0.03436573]
[1763295180459,3.623e-05,95806.0,95805.0,0.01349]
[1763295180675,3.623e-05,95806.0,95805.0,0.03436573]
[1763295181090,3.623e-05,95806.0,95805.0,0.07778447]
[1763295181472,3.623e-05,95806.0,95805.0,0.05690874]
[1763295181669,3.623e-05,95806.0,95805.0,0.07315071]
[1763295181872,3.623e-05,95806.0,95805.0,0.07215071]
[1763295182253,3.623e-05,95806.0,95805.0,0.07315071]
[1763295182823,3.623e-05,95806.0,95805.0,0.02973197]
[1763295183031,3.623e-05,95806.0,95805.0,0.03073197]
[1763295183670,3.623e-05,95806.0,95805.0,0.02973197]
[1763295183986,3.623e-05,95806.0,95805.0,0.03073197]
[1763295184483,3.623e-05,95806.0,95805.0,0.02873197]
[1763295184700,3.623e-05,95806.0,95805.0,0.02973197]
[1763295184844,3.623e-05,95806.0,95805.0,0.03073197]
[1763295193530,3.623e-05,95806.0,95805.0,0.17648674]
[1763295198638,3.623e-05,95806.0,95805.0,0.19452073]
[1763295199848,3.623e-05,95806.0,95805.0,0.17648674]
[1763295204412,3.623e-05,95806.0,95805.0,0.28658674]
[1763295204613,3.623e-05,95806.0,95805.0,0.17648674]
[1763295215791,3.623e-05,95806.0,95805.0,0.35088121]
[1763295215995,3.623e-05,95806.0,95805.0,0.34637791]
[1763295216821,3.623e-05,95806.0,95805.0,0.66937791]
[1763295217031,3.623e-05,95806.0,95805.0,0.76329545]
[1763295217534,3.623e-05,95806.0,95805.0,0.66937791]
[1763295219374,3.623e-05,95806.0,95805.0,0.74846049]
[1763295224172,3.623e-05,95806.0,95805.0,0.84237803]
[1763295224376,3.623e-05,95806.0,95805.0,0.84137803]
[1763295224721,3.623e-05,95806.0,95805.0,0.84237803]
[1763295224960,3.623e-05,95806.0,95805.0,0.84437803]
[1763295225157,3.623e-05,95806.0,95805.0,0.84404075]
[1763295226023,0.01637031,95822.0,95806.0,0.36641874]
[1763295226225,0.01637031,95822.0,95821.0,0.17624967]
[1763295226440,0.0002,95830.0,95822.0,0.15351874]
[1763295226653,0.00034407,95829.0,95822.0,0.25278745]
[1763295226857,0.00034407,95829.0,95823.0,0.02442]
[1763295227088,0.00034407,95829.0,95825.0,0.04341874]
[1763295227325,0.00034407,95829.0,95826.0,0.02087116]
[1763295227531,0.00034407,95829.0,95827.0,0.04341874]
[1763295227736,0.00034407,95829.0,95828.0,0.06783874]
[1763295228147,0.00034407,95829.0,95828.0,0.04341874]
[1763295228385,0.00034407,95829.0,95828.0,0.06916509]
[1763295229400,0.00034407,95829.0,95828.0,0.09003581]
[1763295229600,0.00034407,95829.0,95828.0,0.52313581]
[1763295229803,0.00034407,95829.0,95828.0,0.50426509]
[1763295230837,0.00034407,95829.0,95828.0,0.50326509]
[1763295231318,0.00034407,95829.0,95828.0,0.50526509]
[1763295231476,0.00034407,95829.0,95828.0,0.65101986]
[1763295234651,0.00034407,95829.0,95828.0,0.54091986]
[1763295235826,0.00034407,95829.0,95828.0,0.53991986]
[1763295236034,0.00034407,95829.0,95828.0,0.53791986]
[1763295236215,0.00034407,95829.0,95828.0,0.53891986]
[1763295236563,0.00034407,95829.0,95828.0,0.54091986]
[1763295238764,0.00034407,95829.0,95828.0,0.55748841]
[1763295240975,0.01671229,95829.0,95828.0,0.55748841]
[1763295241171,0.00034407,95829.0,95828.0,0.55748841]
[1763295243571,0.00034407,95829.0,95828.0,0.14875477]
[1763295244842,0.00034407,95829.0,95828.0,0.14775477]
[1763295245223,0.00034407,95829.0,95828.0,0.14875477]
[1763295245635,0.00034407,95829.0,95828.0,0.14575477]
[1763295245841,0.00034407,95829.0,95828.0,0.14675477]
[1763295246044,0.00034407,95829.0,95828.0,0.14775477]
[1763295246459,0.00034407,95829.0,95828.0,0.17073477]
[1763295246622,0.00034407,95829.0,95828.0,0.001]
[1763295247234,0.00034407,95829.0,95827.0,0.01154]
[1763295247431,0.00034407,95829.0,95828.0,0.001]
[1763295247857,0.00034407,95829.0,95828.0,0.002]
[1763295248250,0.00034407,95829.0,95828.0,0.001]
[1763295248799,0.00034407,95829.0,95828.0,0.002]
[1763295249197,0.00034407,95829.0,95827.0,0.01154]
[1763295249405,0.00034407,95829.0,95828.0,0.001]
[1763295249562,0.00034407,95829.0,95828.0,0.002]
[1763295249760,0.00034407,95829.0,95828.0,0.001]
[1763295250209,0.00034407,95829.0,95828.0,0.002]
[1763295250403,0.00034407,95829.0,95828.0,0.001]
[1763295251051,0.00034407,95829.0,95828.0,0.002]
[1763295251705,0.00034407,95829.0,95828.0,0.001]
[1763295251944,0.00034407,95829.0,95825.0,0.01215]
[1763295252140,0.00034407,95829.0,95828.0,0.001]
[1763295252269,0.00034407,95829.0,95828.0,0.002]
[1763295252465,0.00034407,95829.0,95826.0,0.14575477]
[1763295252711,0.00034407,95829.0,95828.0,0.001]
[1763295252925,0.00034407,95829.0,95828.0,0.002]
[1763295253149,0.00034407,95829.0,95828.0,0.001]
[1763295253382,0.00034407,95829.0,95828.0,0.002]
[1763295253585,0.00034407,95829.0,95828.0,0.02860757]
[1763295254021,0.00034407,95829.0,95828.0,0.02760757]
[1763295255158,0.00034407,95829.0,95828.0,0.02860757]
[1763295255500,0.00034407,95829.0,95828.0,0.002]
[1763295255752,0.00034407,95829.0,95828.0,0.001]
[1763295257024,0.00034407,95829.0,95828.0,0.002]
[1763295257538,0.01671516,95829.0,95828.0,0.001]
[1763295257919,0.03308639,95829.0,95821.0,0.11591093]
[1763295258121,0.01671516,95829.0,95821.0,0.11591093]
[1763295258503,0.01671516,95829.0,95828.0,0.001]
[1763295258856,0.01671516,95829.0,95822.0,0.02967257]
[1763295259063,0.01671516,95829.0,95821.0,0.11591093]
[1763295259235,0.01671516,95829.0,95821.0,0.11691093]
[1763295259438,0.01671516,95829.0,95821.0,0.11591093]
[1763295260389,0.01671516,95829.0,95828.0,0.001]
[1763295261802,0.01671516,95829.0,95822.0,0.10402093]
[1763295262582,0.01671516,95829.0,95828.0,0.001]
[1763295262787,0.01671516,95829.0,95822.0,0.10402093]
[1763295263233,0.01671516,95829.0,95822.0,0.10502093]
[1763295264311,0.01671516,95829.0,95822.0,0.10402093]
[1763295264817,0.01671516,95829.0,95828.0,0.001]
[1763295264998,0.01671516,95829.0,95822.0,0.10402093]
[1763295265198,0.01671516,95829.0,95822.0,0.10502093]
[1763295265648,0.01671516,95829.0,95823.0,0.02317]
[1763295265901,0.01671516,95829.0,95828.0,0.001]
[1763295266038,0.01671516,95829.0,95825.0,0.01189]
[1763295266238,0.01671516,95829.0,95826.0,0.03506]
[1763295266703,0.01671516,95829.0,95827.0,0.02078949]
[1763295266871,0.01671516,95829.0,95828.0,0.01998475]
[1763295267073,0.01671516,95829.0,95828.0,0.04085547]
[1763295267278,0.01671516,95829.0,95828.0,0.02087072]
[1763295267875,0.01671516,95829.0,95828.0,0.02187072]
[1763295269291,0.00034407,95829.0,95828.0,0.06528946]
[1763295269691,0.00034407,95829.0,95828.0,0.19017351]
[1763295270317,0.00034407,95829.0,95828.0,0.19117351]
[1763295270526,0.00034407,95829.0,95828.0,0.23620767]
[1763295271024,0.00034407,95829.0,95828.0,0.23720767]
[1763295273826,0.00034407,95829.0,95828.0,0.14775477]
[1763295274775,0.00034407,95829.0,95828.0,0.17104477]
[1763295275153,0.00034407,95829.0,95828.0,0.14775477]
[1763295275353,0.00034407,95829.0,95828.0,0.14575477]
[1763295275566,0.00034407,95829.0,95828.0,0.17104477]
[1763295275999,0.00034407,95829.0,95828.0,0.14775477]
[1763295276606,0.00034407,95829.0,95828.0,0.17104477]
[1763295276776,0.00034407,95829.0,95828.0,0.14775477]
[1763295277394,0.00034407,95829.0,95828.0,0.17204477]
[1763295279165,0.00034407,95829.0,95828.0,0.14775477]
[1763295281143,0.00034407,95829.0,95828.0,0.002]
[1763295281342,0.00034407,95829.0,95828.0,0.001]
[1763295281542,0.00452567,95829.0,95828.0,0.001]
[1763295281909,0.00452567,95829.0,95784.0,0.10402093]
[1763295281910,0.02409239,95829.0,95784.0,0.10402093]
[1763295282111,0.02409239,95829.0,95786.0,0.01165989]
[1763295282112,0.01956672,95828.0,95786.0,0.01165989]
[1763295282338,0.04341874,95827.0,95776.0,0.02429]
[1763295282548,0.04341874,95825.0,95770.0,0.01135]
[1763295282744,0.04341874,95823.0,95770.0,0.01135]
[1763295282974,0.3882004,95822.0,95770.0,0.01135]
[1763295283179,0.34256672,95821.0,95770.0,0.01135]
[1763295283477,0.01956672,95820.0,95770.0,0.01135]
[1763295284305,0.02429,95819.0,95770.0,0.01135]
[1763295284615,0.01956672,95818.0,95770.0,0.01135]
[1763295284815,0.01070099,95817.0,95770.0,0.01135]
[1763295285015,0.01956672,95816.0,95770.0,0.01135]
[1763295287261,0.01956672,95816.0,95771.0,0.146]
[1763295288827,0.01956672,95816.0,95777.0,0.01135]
[1763295289229,0.01956672,95816.0,95778.0,0.04480362]
[1763295292228,0.02429,95815.0,95778.0,0.04480362]
[1763295292555,0.01956672,95814.0,95782.0,0.01135]
[1763295292702,0.01956672,95813.0,95782.0,0.01135]
[1763295292904,0.01956672,95812.0,95786.0,0.10402093]
[1763295293110,0.01956672,95811.0,95787.0,0.04061787]
[1763295293306,0.00034407,95829.0,95788.0,0.02087944]
[1763295293307,0.01956672,95810.0,95788.0,0.02087944]
[1763295293542,0.01956672,95809.0,95788.0,0.02087944]
[1763295293720,0.01956672,95808.0,95789.0,0.01135]
[1763295293931,0.01956672,95807.0,95789.0,0.01135]
[1763295294150,0.01956672,95806.0,95786.0,0.10402093]
[1763295294434,0.02429,95808.0,95785.0,0.001228]
[1763295294435,0.01956672,95805.0,95785.0,0.001228]
[1763295294632,0.01956672,95804.0,95785.0,0.001228]
[1763295294835,0.01956672,95803.0,95785.0,0.001228]
[1763295295040,0.01956672,95802.0,95785.0,0.001228]
[1763295295345,0.01956672,95801.0,95785.0,0.001228]
[1763295295667,0.00034407,95829.0,95785.0,0.001228]
[1763295295668,0.02429,95803.0,95785.0,0.001228]
[1763295295866,0.01945634,95802.0,95785.0,0.001228]
[1763295297970,0.0303354,95802.0,95785.0,0.001228]
[1763295298151,0.01945634,95801.0,95785.0,0.001228]
[1763295298374,0.02491888,95801.0,95785.0,0.001228]
[1763295298608,0.01945634,95800.0,95785.0,0.001228]
[1763295299806,0.01953635,95800.0,95785.0,0.001228]
[1763295299971,0.01945634,95799.0,95785.0,0.001228]
[1763295300152,0.00656238,95798.0,95785.0,0.001228]
[1763295300354,0.01945634,95797.0,95785.0,0.001228]
[1763295300557,0.01945634,95796.0,95785.0,0.001228]
[1763295300769,8.001e-05,95800.0,95786.0,0.12831093]
[1763295300981,8.001e-05,95800.0,95785.0,0.02064117]
[1763295300982,0.01945813,95799.0,95785.0,0.001228]
[1763295301402,0.01945813,95799.0,95785.0,0.04555809]
[1763295301916,0.01945813,95799.0,95785.0,0.02310809]
[1763295302119,0.01945813,95799.0,95785.0,0.001228]
[1763295302717,0.01945813,95799.0,95785.0,0.02210809]
[1763295303113,0.01945813,95799.0,95786.0,0.02087987]
[1763295303359,0.01945813,95799.0,95787.0,0.02087966]
[1763295303562,0.01945813,95799.0,95788.0,0.02087944]
[1763295303766,0.01945813,95799.0,95785.0,0.002228]
[1763295304170,0.01945813,95798.0,95785.0,0.002228]
[1763295304373,0.01945813,95797.0,95785.0,0.001228]
[1763295304577,0.01945813,95796.0,95787.0,0.001]
[1763295304734,0.01945813,95795.0,95787.0,0.001]
[1763295304935,0.01945813,95794.0,95785.0,0.001228]
[1763295305137,8.001e-05,95800.0,95785.0,0.001228]
[1763295305138,0.01945813,95793.0,95785.0,0.001228]
[1763295305336,0.01945813,95792.0,95785.0,0.001228]
[1763295305538,0.01945813,95791.0,95785.0,0.001228]
[1763295305747,0.01945813,95790.0,95785.0,0.001228]
[1763295306019,0.01945813,95789.0,95785.0,0.001228]
[1763295306164,0.01945813,95788.0,95785.0,0.001228]
[1763295306373,0.01945813,95787.0,95785.0,0.001228]
[1763295306572,0.01945813,95786.0,95785.0,0.001228]